bitfinex-derivatives/quotes_BNBF0:USTF0_20250507
["timestamp","ask_amount","ask_price","bid_price","bid_amount"]
[1746628185261,1.00783884,605.37,604.05,3.87609841]
[1746628185767,1.00783884,605.36,604.05,3.87609841]
[1746628186261,1.00783884,605.35,604.05,3.87609841]
[1746628186465,1.00783884,605.34,604.05,3.87609841]
[1746628187062,1.00783884,605.33,604.05,3.87609841]
[1746628187669,1.00783884,605.32,604.05,3.87609841]
[1746628188169,1.00783884,605.31,604.05,3.87609841]
[1746628188864,1.00783884,605.3,604.05,3.87609841]
[1746628189169,1.00783884,605.29,604.05,3.87609841]
[1746628189569,1.00783884,605.28,604.05,3.87609841]
[1746628190168,1.00783884,605.27,604.05,3.87609841]
[1746628190970,1.00783884,605.26,604.05,3.87609841]
[1746628191668,1.00783884,605.25,604.05,3.87609841]
[1746628192069,1.00783884,605.24,604.05,3.87609841]
[1746628192769,1.00783884,605.23,604.05,3.87609841]
[1746628193169,1.00783884,605.22,604.05,3.87609841]
[1746628193666,1.00783884,605.21,604.05,3.87609841]
[1746628194066,1.00783884,605.2,604.05,3.87609841]
[1746628194567,1.00783884,605.19,604.05,3.87609841]
[1746628194769,1.00783884,605.18,604.05,3.87609841]
[1746628195370,1.00783884,605.17,604.05,3.87609841]
[1746628195767,1.00783884,605.16,604.05,3.87609841]
[1746628198872,1.00783884,605.15,604.05,3.87609841]
[1746628199071,1.00783884,605.14,604.05,3.87609841]
[1746628199472,1.00783884,605.13,604.05,3.87609841]
[1746628199869,1.00783884,605.12,604.05,3.87609841]
[1746628200273,1.00783884,605.11,604.05,3.87609841]
[1746628200673,1.00783884,605.1,604.05,3.87609841]
[1746628200874,1.00783884,605.09,604.05,3.87609841]
[1746628201471,0.33005478,605.96,604.05,3.87609841]
[1746628201674,0.30359796,605.95,604.05,3.87609841]
[1746628201875,0.28769009,605.76,604.05,3.87609841]
[1746628202074,0.33016921,605.75,604.05,3.87609841]
[1746628202274,1.00919463,605.74,604.05,3.87609841]
[1746628202575,0.33018011,605.73,604.05,3.87609841]
[1746628202775,1.00919463,605.72,604.05,3.87609841]
[1746628202981,0.33019101,605.71,604.05,3.87609841]
[1746628203176,1.33938564,605.71,604.05,3.87609841]
[1746628203577,1.00919463,605.7,604.07,1.05184857]
[1746628203775,1.00919463,605.7,604.09,0.33107649]
[1746628203978,1.33939654,605.69,604.09,0.33107649]
[1746628204179,0.33020737,605.68,604.09,0.33107649]
[1746628204376,1.00919463,605.67,604.09,0.33107649]
[1746628204581,0.33021827,605.66,604.09,0.33107649]
[1746628204780,1.00919463,605.65,604.09,0.33107649]
[1746628205176,1.00919463,605.64,604.09,0.33107649]
[1746628205977,1.00919463,605.63,604.09,0.33107649]
[1746628206282,1.00919463,605.63,604.1,0.89]
[1746628206582,1.00919463,605.62,604.12,0.33106005]
[1746628207184,1.00919463,605.61,604.13,0.859]
[1746628207377,1.00919463,605.6,604.15,0.33104361]
[1746628207678,1.00919463,605.59,604.15,0.33104361]
[1746628208283,1.00919463,605.58,604.15,0.33104361]
[1746628208977,1.00919463,605.57,604.15,0.33104361]
[1746628209584,1.00919463,605.56,604.15,0.33104361]
[1746628210184,1.00919463,605.55,604.15,0.33104361]
[1746628210982,1.00919463,605.54,604.15,0.33104361]
[1746628211382,1.00919463,605.53,604.15,0.33104361]
[1746628211780,1.00919463,605.52,604.15,0.33104361]
[1746628211984,1.00919463,605.51,604.15,0.33104361]
[1746628212585,1.00919463,605.5,604.15,0.33104361]
[1746628212779,1.00919463,605.49,604.15,0.33104361]
[1746628213084,1.00919463,605.48,604.15,0.33104361]
[1746628213586,1.00919463,605.47,604.15,0.33104361]
[1746628214086,1.00919463,605.46,604.15,0.33104361]
[1746628214585,1.00919463,605.45,604.15,0.33104361]
[1746628214982,1.00919463,605.44,604.15,0.33104361]
[1746628215581,1.00919463,605.43,604.15,0.33104361]
[1746628215986,1.00919463,605.42,604.15,0.33104361]
[1746628216485,1.00919463,605.41,604.15,0.33104361]
[1746628217086,1.00919463,605.4,604.15,0.33104361]
[1746628217485,1.00919463,605.39,604.15,0.33104361]
[1746628217886,1.00919463,605.38,604.15,0.33104361]
[1746628218480,1.00919463,605.37,604.15,0.33104361]
[1746628219086,1.00919463,605.36,604.15,0.33104361]
[1746628219583,1.00919463,605.35,604.15,0.33104361]
[1746628220290,1.00919463,605.34,604.15,0.33104361]
[1746628220683,1.00919463,605.33,604.15,0.33104361]
[1746628221188,1.00919463,605.32,604.15,0.33104361]
[1746628221688,1.00919463,605.31,604.15,0.33104361]
[1746628222090,1.00919463,605.3,604.15,0.33104361]
[1746628222691,1.00919463,605.29,604.15,0.33104361]
[1746628223092,1.00919463,605.28,604.15,0.33104361]
[1746628223394,1.00919463,605.27,604.15,0.33104361]
[1746628223994,1.00919463,605.26,604.15,0.33104361]
[1746628224294,1.00919463,605.25,604.15,0.33104361]
[1746628224597,1.00919463,605.24,604.15,0.33104361]
[1746628225199,1.00919463,605.23,604.15,0.33104361]
[1746628225897,1.00919463,605.22,604.15,0.33104361]
[1746628226298,1.00919463,605.21,604.15,0.33104361]
[1746628227199,1.00919463,605.2,604.15,0.33104361]
[1746628227793,1.00919463,605.19,604.15,0.33104361]
[1746628228298,1.00919463,605.18,604.15,0.33104361]
[1746628228998,1.00919463,605.17,604.15,0.33104361]
[1746628229400,1.00919463,605.16,604.15,0.33104361]
[1746628230199,1.00919463,605.15,604.15,0.33104361]
[1746628230801,1.00919463,605.14,604.15,0.33104361]
[1746628231096,1.00919463,605.13,604.15,0.33104361]
[1746628231601,1.00919463,605.12,604.15,0.33104361]
[1746628231896,1.00919463,605.11,604.15,0.33104361]
[1746628232403,1.00919463,605.1,604.15,0.33104361]
[1746628232799,1.00919463,605.09,604.15,0.33104361]
[1746628233399,1.00919463,605.08,604.15,0.33104361]
[1746628233901,1.00919463,605.07,604.15,0.33104361]
[1746628234699,1.00919463,605.06,604.15,0.33104361]
[1746628235204,1.00919463,605.05,604.15,0.33104361]
[1746628235704,1.00919463,605.04,604.15,0.33104361]
[1746628236506,1.00919463,605.03,604.15,0.33104361]
[1746628237401,1.0084867,605.02,604.15,0.33104361]
[1746628237904,1.0084867,605.01,604.15,0.33104361]
[1746628238705,1.0084867,605.0,604.15,0.33104361]
[1746628239402,1.0084867,604.99,604.15,0.33104361]
[1746628239806,1.0084867,604.98,604.15,0.33104361]
[1746628240107,1.0084867,604.97,604.15,0.33104361]
[1746628240607,1.0084867,604.96,604.15,0.33104361]
[1746628241202,1.0084867,604.95,604.15,0.33104361]
[1746628241811,1.0084867,604.94,604.15,0.33104361]
[1746628242507,1.0084867,604.93,604.15,0.33104361]
[1746628243003,1.0084867,604.92,604.15,0.33104361]
[1746628243203,1.0084867,604.91,604.15,0.33104361]
[1746628243702,1.0084867,604.9,604.15,0.33104361]
[1746628244208,1.0084867,604.89,604.15,0.33104361]
[1746628244805,1.0084867,604.88,604.15,0.33104361]
[1746628245212,1.0084867,604.87,604.15,0.33104361]
[1746628245509,1.0084867,604.86,604.15,0.33104361]
[1746628245805,1.0084867,604.85,604.15,0.33104361]
[1746628246411,1.0084867,604.84,604.15,0.33104361]
[1746628246911,1.0084867,604.83,604.15,0.33104361]
[1746628247313,1.0084867,604.82,604.15,0.33104361]
[1746628247714,0.28781858,605.46,604.15,0.33104361]
[1746628247914,0.33033281,605.45,604.15,0.33104361]
[1746628248415,1.00844939,605.44,604.15,0.33104361]
[1746628248810,1.00844939,605.43,604.15,0.33104361]
[1746628249011,0.33034917,605.42,604.15,0.33104361]
[1746628249315,1.00844939,605.41,604.15,0.33104361]
[1746628249618,0.33036009,605.4,604.15,0.33104361]
[1746628250013,1.00844939,605.39,604.15,0.33104361]
[1746628250215,1.33882039,605.38,604.15,0.33104361]
[1746628250718,1.00844939,605.37,604.15,0.33104361]
[1746628251413,1.00844939,605.36,604.15,0.33104361]
[1746628255217,1.00844939,605.29,604.15,0.33104361]
[1746628256017,1.00844939,605.28,604.15,0.33104361]
[1746628256720,1.00844939,605.27,604.15,0.33104361]
[1746628257116,1.00844939,605.26,604.15,0.33104361]
[1746628257618,1.00844939,605.25,604.15,0.33104361]
[1746628257821,1.00844939,605.24,604.15,0.33104361]
[1746628258417,1.00844939,605.23,604.15,0.33104361]
[1746628259117,1.00844939,605.22,604.15,0.33104361]
[1746628259316,1.00844939,605.21,604.15,0.33104361]
[1746628259720,1.00844939,605.2,604.15,0.33104361]
[1746628260120,1.00844939,605.19,604.15,0.33104361]
[1746628260823,1.00844939,605.18,604.15,0.33104361]
[1746628261019,1.00844939,605.17,604.15,0.33104361]
[1746628261523,1.00844939,605.16,604.15,0.33104361]
[1746628262122,1.00844939,605.15,604.15,0.33104361]
[1746628262618,1.00844939,605.14,604.15,0.33104361]
[1746628263318,1.00844939,605.13,604.15,0.33104361]
[1746628263724,1.00844939,605.12,604.15,0.33104361]
[1746628264619,1.00844939,605.11,604.15,0.33104361]
[1746628265026,1.00844939,605.1,604.15,0.33104361]
[1746628265826,1.00844939,605.09,604.15,0.33104361]
[1746628266325,1.00844939,605.08,604.15,0.33104361]
[1746628267323,1.00844939,605.07,604.15,0.33104361]
[1746628268023,1.00844939,605.06,604.15,0.33104361]
[1746628268328,1.00844939,605.05,604.15,0.33104361]
[1746628268527,1.00844939,605.04,604.15,0.33104361]
[1746628268928,1.00844939,605.03,604.15,0.33104361]
[1746628269528,1.00844939,605.02,604.15,0.33104361]
[1746628269928,1.00844939,605.01,604.15,0.33104361]
[1746628270329,1.00844939,605.0,604.15,0.33104361]
[1746628270629,1.00844939,604.99,604.15,0.33104361]
[1746628271429,1.00844939,604.98,604.15,0.33104361]
[1746628271931,1.00844939,604.97,604.15,0.33104361]
[1746628272731,1.00844939,604.96,604.15,0.33104361]
[1746628272928,1.00844939,604.95,604.15,0.33104361]
[1746628273333,1.00844939,604.94,604.15,0.33104361]
[1746628273833,1.00844939,604.93,604.15,0.33104361]
[1746628274332,1.00844939,604.92,604.15,0.33104361]
[1746628274833,1.00844939,604.91,604.15,0.33104361]
[1746628275531,1.00844939,604.9,604.15,0.33104361]
[1746628276033,1.00844939,604.89,604.15,0.33104361]
[1746628276429,1.00844939,604.88,604.15,0.33104361]
[1746628277329,1.00844939,604.87,604.15,0.33104361]
[1746628277631,1.00844939,604.86,604.15,0.33104361]
[1746628278134,1.00844939,604.85,604.15,0.33104361]
[1746628278631,1.00844939,604.84,604.15,0.33104361]
[1746628279335,1.00844939,604.83,604.15,0.33104361]
[1746628279930,1.00844939,604.82,604.15,0.33104361]
[1746628280434,1.00844939,604.81,604.15,0.33104361]
[1746628280829,1.00844939,604.8,604.15,0.33104361]
[1746628281234,1.00844939,604.79,604.15,0.33104361]
[1746628281835,1.00844939,604.78,604.15,0.33104361]
[1746628282229,1.00844939,604.77,604.15,0.33104361]
[1746628282833,1.00844939,604.76,604.15,0.33104361]
[1746628283335,1.00844939,604.75,604.15,0.33104361]
[1746628283735,1.00844939,604.74,604.15,0.33104361]
[1746628284437,1.00844939,604.73,604.15,0.33104361]
[1746628285039,1.00844939,604.72,604.15,0.33104361]
[1746628285540,0.330371,605.38,604.15,0.33104361]
[1746628285740,1.01511621,605.37,604.15,0.33104361]
[1746628286139,1.01511621,605.36,604.15,0.33104361]
[1746628286440,1.01511621,605.35,604.15,0.33104361]
[1746628287133,1.01511621,605.34,604.15,0.33104361]
[1746628287839,1.01511621,605.33,604.15,0.33104361]
[1746628288140,1.01511621,605.33,604.15,1.11304361]
[1746628288540,0.330371,605.38,604.15,1.11304361]
[1746628288740,1.01481034,605.32,604.15,1.11304361]
[1746628289134,1.01481034,605.31,604.15,1.11304361]
[1746628289741,1.01481034,605.3,604.15,1.11304361]
[1746628290337,1.01481034,605.29,604.15,1.11304361]
[1746628290541,1.01481034,605.28,604.15,1.11304361]
[1746628291040,1.01481034,605.27,604.15,1.11304361]
[1746628291442,1.01481034,605.26,604.15,1.11304361]
[1746628291843,1.01481034,605.25,604.15,1.11304361]
[1746628292338,1.01481034,605.24,604.15,1.11304361]
[1746628292642,1.01481034,605.23,604.15,1.11304361]
[1746628292842,1.01481034,605.22,604.15,1.11304361]
[1746628293242,1.01481034,605.21,604.15,1.11304361]
[1746628293543,1.01481034,605.2,604.15,1.11304361]
[1746628294338,1.01481034,605.19,604.15,1.11304361]
[1746628294941,1.01481034,605.18,604.15,1.11304361]
[1746628295342,1.01481034,605.17,604.15,1.11304361]
[1746628296043,1.01481034,605.16,604.15,1.11304361]
[1746628296342,1.01481034,605.15,604.15,1.11304361]
[1746628296543,1.01481034,605.14,604.15,1.11304361]
[1746628296844,1.01481034,605.13,604.15,1.11304361]
[1746628297842,1.01481034,605.12,604.15,1.11304361]
[1746628298542,1.01481034,605.11,604.15,1.11304361]
[1746628299150,1.01481034,605.1,604.15,1.11304361]
[1746628299651,1.01481034,605.09,604.15,1.11304361]
[1746628300248,1.01481034,605.08,604.15,1.11304361]
[1746628301050,1.01481034,605.07,604.15,1.11304361]
[1746628301449,1.01481034,605.06,604.15,1.11304361]
[1746628301651,1.01481034,605.05,604.15,1.11304361]
[1746628302451,1.01481034,605.04,604.15,1.11304361]
[1746628303453,1.01481034,605.04,604.15,2.09304361]
[1746628303645,1.01481034,605.03,604.15,2.09304361]
[1746628303850,1.01481034,605.02,604.15,2.09304361]
[1746628304457,1.01481034,605.01,604.15,2.09304361]
[1746628304656,1.01481034,605.0,604.15,2.09304361]
[1746628304956,1.01481034,604.99,604.15,2.09304361]
[1746628305355,1.01481034,604.98,604.15,2.09304361]
[1746628305756,1.01481034,604.97,604.15,2.09304361]
[1746628306055,1.01481034,604.96,604.15,2.09304361]
[1746628306657,1.01481034,604.95,604.15,2.72604361]
[1746628307159,1.01481034,604.94,604.15,2.72604361]
[1746628307658,1.01481034,604.93,604.15,3.34404361]
[1746628307857,1.01481034,604.92,604.15,3.34404361]
[1746628308358,1.01481034,604.91,604.15,3.34404361]
[1746628308957,1.01481034,604.9,604.15,3.34404361]
[1746628309459,1.01481034,604.89,604.15,3.34404361]
[1746628310155,1.01481034,604.88,604.15,3.34404361]
[1746628310855,1.01481034,604.87,604.15,3.34404361]
[1746628311360,1.01481034,604.86,604.15,3.34404361]
[1746628311957,1.01481034,604.85,604.15,3.34404361]
[1746628312555,1.01481034,604.84,604.15,3.34404361]
[1746628312755,1.01481034,604.83,604.15,3.34404361]
[1746628313359,1.01481034,604.82,604.15,3.34404361]
[1746628314063,1.01481034,604.81,604.15,3.34404361]
[1746628314461,1.01481034,604.8,604.15,3.34404361]
[1746628315156,1.01481034,604.79,604.15,3.34404361]
[1746628315461,0.330371,605.38,604.15,3.34404361]
[1746628315462,1.01481034,604.78,604.15,3.34404361]
[1746628315662,1.01481034,604.77,604.15,3.34404361]
[1746628315958,1.01481034,604.77,604.15,2.56204361]
[1746628316663,1.01481034,604.76,604.15,2.56204361]
[1746628317057,1.01481034,604.75,604.15,2.56204361]
[1746628317556,1.01481034,604.74,604.15,2.56204361]
[1746628317962,1.01481034,604.73,604.15,2.56204361]
[1746628318264,1.01481034,604.72,604.15,2.56204361]
[1746628318558,1.01481034,604.71,604.15,2.56204361]
[1746628319362,1.01481034,604.7,604.15,2.56204361]
[1746628319762,0.330371,605.38,604.15,2.56204361]
[1746628320156,1.01316215,605.37,604.15,2.56204361]
[1746628320361,1.01316215,605.36,604.15,2.56204361]
[1746628320862,1.01316215,605.35,604.15,2.56204361]
[1746628321364,1.01316215,605.34,604.15,2.56204361]
[1746628321764,1.01316215,605.33,604.15,2.56204361]
[1746628321962,1.01316215,605.32,604.15,2.56204361]
[1746628322665,1.01316215,605.31,604.15,2.56204361]
[1746628323466,1.01316215,605.3,604.15,2.56204361]
[1746628323868,1.01316215,605.29,604.15,2.56204361]
[1746628324563,1.01316215,605.28,604.15,2.56204361]
[1746628325266,1.01316215,605.27,604.15,2.56204361]
[1746628325467,1.01316215,605.26,604.15,2.56204361]
[1746628325963,1.01316215,605.25,604.15,2.56204361]
[1746628326363,1.01316215,605.24,604.15,2.56204361]
[1746628327163,1.01316215,605.23,604.15,2.56204361]
[1746628327663,1.01316215,605.22,604.15,2.56204361]
[1746628327865,1.01316215,605.21,604.15,2.56204361]
[1746628328566,1.01316215,605.2,604.15,2.56204361]
[1746628329066,1.01316215,605.19,604.15,2.56204361]
[1746628329669,1.01316215,605.18,604.15,2.56204361]
[1746628330068,1.01316215,605.17,604.15,2.56204361]
[1746628330762,1.01316215,605.16,604.15,2.56204361]
[1746628331467,1.01316215,605.15,604.15,2.56204361]
[1746628332268,1.01316215,605.14,604.15,2.56204361]
[1746628332870,1.01316215,605.13,604.15,2.56204361]
[1746628333168,1.01316215,605.12,604.15,2.56204361]
[1746628333664,1.01316215,605.11,604.15,2.56204361]
[1746628334373,1.01316215,605.1,604.15,2.56204361]
[1746628334570,1.01316215,605.09,604.15,2.56204361]
[1746628335072,1.01316215,605.08,604.15,2.56204361]
[1746628335370,1.01316215,605.07,604.15,2.56204361]
[1746628336072,1.01316215,605.06,604.15,2.56204361]
[1746628336873,1.01316215,605.05,604.15,2.56204361]
[1746628337268,1.01316215,605.04,604.15,2.56204361]
[1746628338074,1.01316215,605.03,604.15,2.56204361]
[1746628338370,1.01316215,605.02,604.15,2.56204361]
[1746628338974,1.01316215,605.01,604.15,2.56204361]
[1746628339774,1.01316215,605.0,604.15,2.56204361]
[1746628339976,1.01316215,604.99,604.15,2.56204361]
[1746628340471,1.01316215,604.98,604.15,2.56204361]
[1746628340772,1.01316215,604.97,604.15,2.56204361]
[1746628340976,1.01316215,604.96,604.15,2.56204361]
[1746628341671,1.01316215,604.95,604.15,2.56204361]
[1746628342178,1.01316215,604.94,604.15,2.56204361]
[1746628342473,1.01316215,604.93,604.15,2.56204361]
[1746628342872,1.01316215,604.92,604.15,2.56204361]
[1746628343478,1.01316215,604.91,604.15,2.56204361]
[1746628343777,1.01316215,604.9,604.15,2.56204361]
[1746628343977,1.01316215,604.89,604.15,2.56204361]
[1746628344375,1.01316215,604.88,604.15,2.56204361]
[1746628344572,0.28779239,605.33,604.15,2.56204361]
[1746628344573,1.01316215,604.87,604.15,2.56204361]
[1746628344978,1.01316215,604.86,604.15,2.56204361]
[1746628345879,1.01316215,604.85,604.15,2.56204361]
[1746628346278,1.01316215,604.84,604.15,2.56204361]
[1746628346572,1.01316215,604.83,604.15,2.56204361]
[1746628347079,1.01316215,604.82,604.15,2.56204361]
[1746628347579,1.01316215,604.81,604.15,2.56204361]
[1746628348179,1.01316215,604.8,604.15,2.56204361]
[1746628348982,1.01316215,604.79,604.15,2.56204361]
[1746628349381,1.01316215,604.78,604.15,2.56204361]
[1746628349783,1.01316215,604.77,604.15,2.56204361]
[1746628350281,1.01316215,604.76,604.15,2.56204361]
[1746628350882,1.01316215,604.75,604.15,2.56204361]
[1746628351378,1.01316215,604.74,604.15,2.56204361]
[1746628352083,1.01316215,604.73,604.15,2.56204361]
[1746628352483,1.01316215,604.72,604.15,2.56204361]
[1746628352782,1.01316215,604.71,604.15,2.56204361]
[1746628353386,1.01316215,604.7,604.15,2.56204361]
[1746628353986,1.01316215,604.69,604.15,2.56204361]
[1746628354182,1.01316215,604.69,604.15,1.58204361]
[1746628354387,1.01316215,604.69,604.15,0.33104361]
[1746628354988,1.01316215,604.68,604.15,0.33104361]
[1746628355286,1.01316215,604.67,604.15,0.33104361]
[1746628355687,1.01316215,604.66,604.15,0.33104361]
[1746628356181,1.01316215,604.65,604.15,0.33104361]
[1746628356381,1.01316215,604.64,604.15,0.33104361]
[1746628357087,0.61818362,605.38,604.15,0.33104361]
[1746628357280,1.32055266,605.37,604.15,0.33104361]
[1746628357484,0.30378413,605.36,604.15,0.33104361]
[1746628357684,1.32055266,605.36,604.15,0.33104361]
[1746628357886,0.30378413,605.35,604.15,1.00904361]
[1746628358082,1.01676853,605.34,604.15,1.00904361]
[1746628358483,0.30378413,605.33,604.15,1.00904361]
[1746628358790,1.01676853,605.32,604.15,1.00904361]
[1746628358988,1.01676853,605.31,604.15,1.00904361]
[1746628359587,1.01676853,605.3,604.15,1.00904361]
[1746628359983,1.01676853,605.29,604.15,1.00904361]
[1746628360184,1.32055266,605.29,604.15,1.00904361]
[1746628360489,0.30378413,605.28,604.15,1.00904361]
[1746628360688,1.32055266,605.28,604.15,1.00904361]
[1746628360889,0.30378413,605.27,604.15,1.00904361]
[1746628361186,1.32055266,605.27,604.15,1.00904361]
[1746628361490,1.32055266,605.26,604.15,1.00904361]
[1746628361690,0.30378413,605.25,604.15,1.00904361]
[1746628362088,1.01676853,605.24,604.15,1.00904361]
[1746628362291,1.01676853,605.23,604.15,1.00904361]
[1746628362492,1.32055266,605.23,604.15,1.00904361]
[1746628362692,0.30378413,605.22,604.15,1.00904361]
[1746628362887,1.01676853,605.21,604.15,1.00904361]
[1746628363188,0.2877448,605.35,604.15,1.00904361]
[1746628363489,1.01702607,605.2,604.15,1.00904361]
[1746628363889,1.01702607,605.19,604.15,1.00904361]
[1746628364395,1.01702607,605.18,604.15,1.00904361]
[1746628364895,1.01702607,605.17,604.15,1.00904361]
[1746628365393,1.01702607,605.16,604.15,1.00904361]
[1746628365895,1.01702607,605.16,604.15,1.88504361]
[1746628366293,1.01702607,605.15,604.15,1.88504361]
[1746628366997,1.01702607,605.14,604.15,1.88504361]
[1746628367599,1.01702607,605.13,604.15,1.88504361]
[1746628368099,1.01702607,605.12,604.15,1.88504361]
[1746628368704,1.01702607,605.11,604.15,1.88504361]
[1746628369203,1.01702607,605.1,604.15,1.88504361]
[1746628369399,1.01702607,605.09,604.15,1.88504361]
[1746628370106,1.01702607,605.08,604.15,1.88504361]
[1746628370505,1.01702607,605.07,604.15,1.88504361]
[1746628370905,1.01702607,605.06,604.15,1.88504361]
[1746628371501,1.01702607,605.05,604.15,1.88504361]
[1746628371704,1.01702607,605.04,604.15,1.88504361]
[1746628372103,1.01702607,605.03,604.15,1.88504361]
[1746628372705,1.01702607,605.02,604.15,1.88504361]
[1746628373102,0.28777573,605.35,604.15,1.88504361]
[1746628373103,1.01702607,605.01,604.15,1.88504361]
[1746628373606,1.01702607,605.0,604.15,1.88504361]
[1746628374005,1.01702607,604.99,604.15,1.88504361]
[1746628374606,1.01702607,604.98,604.15,1.88504361]
[1746628374903,1.01702607,604.97,604.15,1.88504361]
[1746628375202,1.01702607,604.96,604.15,1.88504361]
[1746628375607,1.01702607,604.95,604.15,1.88504361]
[1746628375907,1.01702607,604.94,604.15,1.88504361]
[1746628376205,1.01702607,604.93,604.15,1.88504361]
[1746628376606,1.01702607,604.92,604.15,1.88504361]
[1746628377002,0.28778525,605.35,604.15,1.88504361]
[1746628377003,1.01702607,604.91,604.15,1.88504361]
[1746628377506,1.01702607,604.9,604.15,1.88504361]
[1746628378003,1.01702607,604.89,604.15,1.88504361]
[1746628378806,1.01702607,604.88,604.15,1.88504361]
[1746628379006,0.28779239,605.35,604.15,1.88504361]
[1746628379204,1.01523693,604.87,604.15,1.88504361]
[1746628382510,1.01523693,604.86,604.15,1.88504361]
[1746628383103,1.01523693,604.85,604.15,1.88504361]
[1746628383609,1.01523693,604.84,604.15,1.88504361]
[1746628383910,1.01523693,604.83,604.15,1.88504361]
[1746628384608,1.01523693,604.82,604.15,1.88504361]
[1746628385209,1.01523693,604.81,604.15,1.88504361]
[1746628385610,1.01523693,604.81,604.15,2.70404361]
[1746628385811,1.01523693,604.8,604.15,2.70404361]
[1746628386411,1.01523693,604.79,604.15,2.70404361]
[1746628386706,1.01523693,604.78,604.15,2.70404361]
[1746628387212,1.01523693,604.77,604.15,2.70404361]
[1746628387806,1.01523693,604.76,604.15,2.70404361]
[1746628388609,1.01523693,604.75,604.15,2.70404361]
[1746628388913,1.01523693,604.74,604.15,2.70404361]
[1746628389709,1.01523693,604.73,604.15,2.70404361]
[1746628389914,1.01523693,604.72,604.15,2.70404361]
[1746628390112,1.01523693,604.71,604.15,2.70404361]
[1746628390614,1.01523693,604.7,604.15,2.70404361]
[1746628391312,1.01523693,604.69,604.15,2.70404361]
[1746628391513,1.01523693,604.69,604.15,2.02604361]
[1746628392214,1.01523693,604.68,604.15,2.02604361]
[1746628392613,1.01523693,604.67,604.15,2.02604361]
[1746628393119,1.01523693,604.66,604.15,2.02604361]
[1746628393812,1.01523693,604.65,604.15,2.02604361]
[1746628394414,1.01523693,604.64,604.15,2.02604361]
[1746628394717,1.01523693,604.63,604.15,2.02604361]
[1746628395014,1.01523693,604.62,604.15,2.02604361]
[1746628395615,1.01523693,604.61,604.15,2.02604361]
[1746628396014,0.28784833,605.23,604.15,2.02604361]
[1746628396215,1.01477223,604.6,604.15,2.02604361]
[1746628396620,1.01477223,604.59,604.15,2.02604361]
[1746628397014,1.01477223,604.58,604.15,2.02604361]
[1746628397711,1.01477223,604.57,604.15,2.02604361]
[1746628398112,1.01477223,604.56,604.15,2.02604361]
[1746628398617,1.01477223,604.55,604.15,2.02604361]
[1746628399219,1.01477223,604.54,604.15,2.02604361]
[1746628399819,1.01477223,604.53,604.15,2.02604361]
[1746628400520,1.01477223,604.52,604.15,2.02604361]
[1746628400821,1.01477223,604.51,604.15,2.02604361]
[1746628401423,1.01477223,604.5,604.15,2.02604361]
[1746628401722,1.01477223,604.49,604.15,2.02604361]
[1746628401919,1.01477223,604.49,604.15,1.15004361]
[1746628402221,1.01477223,604.48,604.15,1.15004361]
[1746628402722,1.01477223,604.47,604.15,1.15004361]
[1746628403524,0.28788167,605.18,604.15,1.15004361]
[1746628404023,1.01303386,605.17,604.15,1.15004361]
[1746628404626,1.01303386,605.16,604.15,1.15004361]
[1746628405027,1.01303386,605.15,604.15,1.15004361]
[1746628405420,1.01303386,605.14,604.15,1.15004361]
[1746628405720,1.01303386,605.14,604.15,1.99104361]
[1746628406225,1.01303386,605.13,604.15,1.99104361]
[1746628406425,0.2878031,605.18,604.15,1.99104361]
[1746628406727,0.30387953,605.12,604.15,1.99104361]
[1746628406927,0.63436517,605.17,604.15,1.99104361]
[1746628407226,0.30387953,605.16,604.15,1.99104361]
[1746628407821,1.01283746,605.15,604.15,1.99104361]
[1746628408026,0.30387953,605.14,604.15,1.99104361]
[1746628408525,1.01283746,605.13,604.15,1.99104361]
[1746628408825,1.01283746,605.12,604.15,1.99104361]
[1746628409024,0.30387953,605.11,604.15,1.99104361]
[1746628409522,1.01283746,605.1,604.15,1.99104361]
[1746628409921,1.31671699,605.09,604.15,1.99104361]
[1746628410325,0.30387953,605.08,604.15,1.99104361]
[1746628410626,1.01283746,605.07,604.15,1.99104361]
[1746628410824,0.30387953,605.06,604.15,1.99104361]
[1746628411725,1.01283746,605.05,604.15,1.99104361]
[1746628412125,1.01283746,605.04,604.15,1.99104361]
[1746628412826,1.01283746,605.03,604.15,1.99104361]
[1746628413329,1.01283746,605.02,604.15,1.99104361]
[1746628413929,1.01283746,605.01,604.15,1.99104361]
[1746628414625,1.01283746,605.0,604.15,1.99104361]
[1746628415228,1.01283746,604.99,604.15,1.99104361]
[1746628415628,1.01283746,604.98,604.15,1.99104361]
[1746628416127,1.01283746,604.97,604.15,1.99104361]
[1746628416529,1.01283746,604.96,604.15,1.99104361]
[1746628416827,1.01283746,604.95,604.15,1.99104361]
[1746628417229,1.01283746,604.94,604.15,1.99104361]
[1746628417823,1.01283746,604.93,604.15,1.99104361]
[1746628418428,1.01283746,604.93,604.15,2.68304361]
[1746628418729,1.01283746,604.92,604.15,2.68304361]
[1746628419029,1.01283746,604.91,604.15,2.68304361]
[1746628419325,1.01283746,604.9,604.15,2.68304361]
[1746628419830,1.01283746,604.89,604.15,2.68304361]
[1746628420229,1.01283746,604.88,604.15,2.68304361]
[1746628420832,1.01283746,604.87,604.15,2.68304361]
[1746628421332,1.01283746,604.86,604.15,2.68304361]
[1746628421932,1.01283746,604.85,604.15,2.68304361]
[1746628422329,1.01283746,604.84,604.15,2.68304361]